bitfinex/quotes_SOLUSD_20250527
["timestamp","ask_amount","ask_price","bid_price","bid_amount"]
[1748360949373,22.42883123,178.36,178.35,26.0]
[1748360949656,22.42883123,178.36,178.34,26.0]
[1748360949657,25.23215035,178.36,178.34,26.0]
[1748360949861,21.30750358,178.35,178.34,26.0]
[1748360950930,1.1214534,178.34,178.31,9.2]
[1748360951161,21.30750358,178.32,178.31,9.2]
[1748360951543,21.30750358,178.32,178.25,7.13830044]
[1748360951752,21.30750358,178.28,178.26,44.02]
[1748360951983,21.30750358,178.3,178.28,26.0]
[1748360952259,21.30750358,178.29,178.26,9.2]
[1748360952430,21.30750358,178.27,178.26,9.2]
[1748360952632,21.30750358,178.27,178.26,44.04]
[1748360953055,22.42939733,178.27,178.26,9.2]
[1748360953233,1.12189375,178.27,178.26,9.2]
[1748360953434,1.12189375,178.27,178.26,44.04]
[1748360953635,1.12184327,178.28,178.26,44.04]
[1748360954145,9.53075067,178.37,178.29,26.0]
[1748360954350,21.30750358,178.31,178.29,26.0]
[1748360954548,21.30750358,178.3,178.29,26.0]
[1748360954942,22.42920857,178.3,178.29,26.0]
[1748360955243,25.23347104,178.3,178.27,26.0]
[1748360955936,21.30750358,178.28,178.27,26.0]
[1748360958060,9.53312913,178.33,178.27,26.0]
[1748360958267,21.30750358,178.3,178.28,26.0]
[1748360958570,21.30750358,178.29,178.22,80.62]
[1748360958862,21.30750358,178.29,178.22,204.26]
[1748360959263,1.12183082,178.28,178.25,26.0]
[1748360959480,3.92640788,178.28,178.22,204.26]
[1748360959758,3.92640788,178.28,178.25,26.0]
[1748360960949,25.23391146,178.28,178.25,26.0]
[1748360961147,21.30750358,178.27,178.23,26.0]
[1748360961361,21.30750358,178.25,178.24,26.0]
[1748360961574,22.42946027,178.26,178.24,26.0]
[1748360961945,1.12195669,178.26,178.24,26.0]
[1748360962941,1.12195669,178.26,178.25,26.0]
[1748360963147,25.15024147,178.26,178.21,98.0]
[1748360963345,25.15024147,178.26,178.21,119.22339305]
[1748360963654,3.92684842,178.26,178.22,21.22339305]
[1748360963861,3.92684842,178.26,178.21,132.86]
[1748360963862,3.92684842,178.26,178.25,21.22339305]
[1748360965091,3.92618766,178.29,178.25,21.22339305]
[1748360966554,3.92618766,178.29,178.24,47.22339305]
[1748360966756,3.92618766,178.29,178.25,21.22339305]
[1748360966954,3.92618766,178.29,178.28,26.0]
[1748360967254,1.1217679,178.29,178.28,47.22339305]
[1748360968305,1.1217679,178.29,178.28,26.0]
[1748360968455,1.12170499,178.3,178.29,26.0]
[1748360970079,1.12170499,178.3,178.29,47.22339305]
[1748360970461,21.22339305,178.34,178.29,47.22339305]
[1748360970880,9.53075067,178.37,178.3,21.22339305]
[1748360971078,21.22339305,178.35,178.3,21.22339305]
[1748360972087,21.22339305,178.36,178.3,21.22339305]
[1748360972383,3.92486683,178.35,178.3,21.22339305]
[1748360972771,3.92486683,178.35,178.32,26.0]
[1748360973163,3.92486683,178.35,178.34,26.0]
[1748360974176,1.12139052,178.35,178.34,47.22339305]
[1748360974389,2.80301477,178.38,178.34,47.22339305]
[1748360974612,24.02640782,178.38,178.34,26.0]
[1748360974783,21.22339305,178.36,178.34,26.0]
[1748360975082,21.22339305,178.37,178.34,26.0]
[1748360975669,2.80301477,178.38,178.34,26.0]
[1748360976062,24.02640782,178.38,178.34,26.0]
[1748360976501,25.14760974,178.38,178.34,26.0]
[1748360976869,21.22339305,178.37,178.34,26.0]
[1748360977272,21.22339305,178.35,178.33,26.0]
[1748360977491,21.22339305,178.34,178.33,26.0]
[1748360977782,21.22339305,178.34,178.29,56.06339305]
[1748360977985,21.22339305,178.33,178.28,21.22339305]
[1748360978189,21.22339305,178.32,178.27,30.42339305]
[1748360978368,21.22339305,178.31,178.27,9.2]
[1748360978569,1.12170499,178.3,178.29,26.0]
[1748360978776,1.12170499,178.3,178.27,9.2]
[1748360979087,1.12170499,178.3,178.27,30.42339305]
[1748360979287,1.12170499,178.3,178.29,26.0]
[1748360979489,1.12170499,178.3,178.27,30.42339305]
[1748360979784,1.12170499,178.3,178.29,26.0]
[1748360982261,3.92589296,178.31,178.29,26.0]
[1748360983567,3.92589296,178.31,178.3,26.0]
[1748360987307,25.14928601,178.31,178.3,26.0]
[1748360988071,25.14928601,178.31,178.27,9.2]
[1748360988376,21.22339305,178.28,178.23,56.06339305]
[1748360988579,21.22339305,178.28,178.26,26.0]
[1748360989174,21.22339305,178.27,178.26,26.0]
[1748360989374,21.22339305,178.27,178.23,123.64]
[1748360989582,21.22339305,178.27,178.24,26.0]
[1748360989900,1.12195669,178.26,178.25,26.0]
[1748360991704,1.12189375,178.27,178.25,26.0]
[1748360991904,22.3452868,178.27,178.25,26.0]
[1748360992201,21.22339305,178.26,178.25,26.0]
[1748360992592,21.22339305,178.26,178.22,9.2]
[1748360992806,21.22339305,178.23,178.22,9.2]
[1748360993093,9.53609692,178.27,178.21,21.22339305]
[1748360993294,30.75948997,178.27,178.21,47.22339305]
[1748360993510,21.22339305,178.26,178.21,47.22339305]
[1748360994025,3.92706871,178.25,178.21,26.0]
[1748360995214,3.92706871,178.25,178.21,47.22339305]
[1748360995373,3.92706871,178.25,178.19,93.32214399]
[1748360995374,3.92706871,178.25,178.24,26.0]
[1748360995990,2.80504908,178.25,178.24,26.0]
[1748360997377,5.60821042,178.31,178.24,26.0]
[1748360997606,21.22339305,178.28,178.24,26.0]
[1748361000194,1.12189375,178.27,178.24,26.0]
[1748361000817,1.12189375,178.27,178.26,47.22339305]
[1748361001107,1.12170499,178.3,178.26,47.22339305]
[1748361001276,1.12170499,178.3,178.29,26.0]
[1748361001476,1.12170499,178.3,178.29,136.02339305]
[1748361001911,1.12170499,178.3,178.29,114.8]
[1748361003503,3.92578677,178.31,178.29,114.8]
[1748361004893,25.14917982,178.31,178.29,88.8]
[1748361005103,21.22339305,178.3,178.23,88.8]
[1748361005283,21.22339305,178.26,178.23,88.8]
[1748361005486,21.22339305,178.27,178.24,26.0]
[1748361005900,21.22339305,178.27,178.21,110.02339305]
[1748361006226,21.22339305,178.27,178.24,26.0]
[1748361006521,21.22339305,178.27,178.25,26.0]
[1748361006711,21.22339305,178.27,178.22,1.13199305]
[1748361007010,8.41235511,178.31,178.22,1.13199305]
[1748361007209,21.22339305,178.27,178.22,89.93199305]
[1748361007410,21.22339305,178.27,178.22,1.13199305]
[1748361007709,1.12189375,178.27,178.25,21.22339305]
[1748361008283,3.92662814,178.27,178.24,21.22339305]
[1748361009589,2.80473439,178.27,178.24,21.22339305]
[1748361009793,2.80473439,178.27,178.25,21.22339305]
[1748361010115,2.80473439,178.27,178.22,88.8]
[1748361010309,2.80473439,178.27,178.24,21.22339305]
[1748361010717,2.80473439,178.27,178.25,21.22339305]
[1748361011817,2.80473439,178.27,178.22,98.0]
[1748361012022,2.80473439,178.27,178.24,21.22339305]
[1748361012522,2.80473439,178.27,178.22,98.0]
[1748361012818,2.80473439,178.27,178.22,119.22339305]
[1748361013400,24.02812744,178.27,178.22,119.22339305]
[1748361013722,24.02812744,178.27,178.22,98.0]
[1748361013925,3.92662814,178.27,178.22,98.0]
[1748361014242,21.22339305,178.25,178.22,9.2]
[1748361014805,21.22339305,178.23,178.2,88.8]
[1748361015048,21.22339305,178.22,178.17,119.24339305]
[1748361015334,21.22339305,178.21,178.17,98.02]
[1748361015620,21.22339305,178.21,178.17,9.22]
[1748361016017,1.12233445,178.2,178.17,9.22]
[1748361016917,22.3457275,178.2,178.17,9.22]
[1748361017297,21.22339305,178.21,178.17,9.22]
[1748361017492,5.61083518,178.23,178.17,9.22]
[1748361017697,21.22339305,178.2,178.17,9.22]
[1748361017896,21.22339305,178.19,178.16,88.8]
[1748361018324,21.22339305,178.18,178.13,88.8]
[1748361018540,21.22339305,178.18,178.13,21.22339305]
[1748361019602,3.92883201,178.17,178.12,98.02]
[1748361019827,3.92883201,178.17,178.12,119.24339305]
[1748361020210,25.15222506,178.17,178.12,98.02]
[1748361020417,21.22339305,178.16,178.12,98.02]
[1748361020643,21.22339305,178.15,178.12,98.02]
[1748361020815,3.92883201,178.17,178.12,119.24339305]
[1748361021020,25.15222506,178.17,178.12,119.24339305]
[1748361021646,3.92883201,178.17,178.12,98.02]
[1748361021826,21.22339305,178.15,178.12,98.02]
[1748361022427,3.92883201,178.17,178.12,98.02]
[1748361022630,3.92883201,178.17,178.13,21.22339305]
[1748361022837,25.15222506,178.17,178.12,119.24339305]
[1748361023351,1.12252343,178.17,178.16,21.22339305]
[1748361023529,2.80593746,178.2,178.16,21.22339305]
[1748361024652,24.02933051,178.2,178.17,26.0]
[1748361025521,25.15166496,178.2,178.17,26.0]
[1748361027242,3.92827191,178.2,178.17,26.0]
[1748361027544,25.15166496,178.2,178.17,26.0]
[1748361028523,21.22339305,178.19,178.17,26.0]
[1748361029750,1.12246043,178.18,178.17,26.0]
[1748361031256,25.15200456,178.18,178.15,26.0]
[1748361031450,21.22339305,178.16,178.14,88.8]
[1748361031638,21.22339305,178.15,178.12,9.22]
[1748361031834,21.22339305,178.13,178.11,32.5668]
[1748361032040,21.22339305,178.12,178.11,32.5668]
[1748361032241,21.22339305,178.13,178.11,32.5668]
[1748361032827,22.34610552,178.14,178.11,32.5668]
[1748361035144,21.22339305,178.13,178.11,32.5668]
[1748361035341,21.22339305,178.14,178.11,32.5668]
[1748361036848,5.61230216,178.18,178.11,32.5668]
[1748361037044,5.61230216,178.18,178.11,53.79019305]
[1748361037240,1.12264945,178.15,178.11,53.79019305]
[1748361037672,22.3460425,178.15,178.11,32.5668]
[1748361038662,25.15266613,178.15,178.11,32.5668]
[1748361040561,21.22339305,178.13,178.11,26.0]
[1748361041075,3.92927308,178.15,178.12,26.0]
[1748361041660,3.92927308,178.15,178.11,21.22339305]
[1748361041661,25.15266613,178.15,178.11,26.0]
[1748361041865,21.22339305,178.12,178.07,15.446]
[1748361042064,1.12290157,178.11,178.07,36.66939305]
[1748361042257,1.12290157,178.11,178.1,26.0]
[1748361042668,1.12290157,178.11,178.1,47.22339305]
[1748361044163,2.80707157,178.13,178.1,47.22339305]
[1748361044572,1.12271247,178.14,178.11,21.22339305]
[1748361044740,1.12271247,178.14,178.12,21.22339305]
[1748361045172,1.12271247,178.14,178.13,47.22339305]
[1748361045371,1.12271247,178.14,178.13,21.22339305]
[1748361045857,1.12271247,178.14,178.13,47.22339305]
[1748361046064,2.80656476,178.16,178.13,47.22339305]
[1748361046247,2.80656476,178.16,178.14,21.22339305]
[1748361046455,1.12246043,178.18,178.14,21.22339305]
[1748361046658,1.12246043,178.18,178.17,26.0]
[1748361048264,3.92850627,178.19,178.17,26.0]
[1748361049373,9.53877229,178.22,178.17,21.22339305]
[1748361049551,3.92772976,178.22,178.19,26.0]
[1748361049757,25.15112281,178.22,178.19,26.0]
[1748361049939,21.22339305,178.21,178.19,26.0]
[1748361051069,21.22339305,178.2,178.19,26.0]
[1748361051271,22.3457275,178.2,178.19,26.0]
[1748361051979,1.12233445,178.2,178.19,26.0]
[1748361053179,22.3457275,178.2,178.19,26.0]
[1748361053369,22.3457275,178.2,178.17,114.8]
[1748361053570,21.22339305,178.19,178.17,114.8]
[1748361053975,21.22339305,178.19,178.17,26.0]
[1748361054173,22.3457275,178.2,178.17,26.0]
[1748361054369,1.12233445,178.2,178.17,26.0]
[1748361054671,1.12233445,178.2,178.17,47.22339305]
[1748361055064,25.15134321,178.21,178.17,26.0]
[1748361057166,3.92795016,178.21,178.17,47.22339305]
[1748361058366,3.92795016,178.21,178.17,136.02339305]
[1748361058561,1.12227147,178.21,178.2,47.22339305]
[1748361059069,3.92733428,178.24,178.2,47.22339305]
[1748361059581,3.92733428,178.24,178.22,21.22339305]
[1748361059879,3.92733428,178.24,178.22,26.0]
[1748361060853,1.12208258,178.24,178.23,47.22339305]
[1748361061059,2.80485191,178.27,178.26,26.0]
[1748361061957,1.12183082,178.28,178.27,26.0]
[1748361062175,1.12183082,178.28,178.27,21.22339305]
[1748361062375,1.12183082,178.28,178.26,47.22339305]
[1748361063086,3.92608408,178.3,178.26,47.22339305]
[1748361063877,25.14947713,178.3,178.26,26.0]
[1748361064803,21.22339305,178.27,178.23,88.8]
[1748361064956,1.12201963,178.25,178.23,88.8]
[1748361065296,1.12201963,178.25,178.23,110.02339305]
[1748361065659,1.12201963,178.25,178.24,26.0]
[1748361066976,3.92677408,178.27,178.24,26.0]
[1748361067997,1.12189375,178.27,178.25,21.22339305]
[1748361068181,1.12189375,178.27,178.26,21.22339305]
[1748361069079,3.9260553,178.3,178.26,21.22339305]
[1748361069398,21.22339305,178.28,178.26,26.0]
[1748361069695,21.22339305,178.29,178.24,21.22339305]
[1748361069989,21.22339305,178.29,178.24,47.22339305]
[1748361070158,3.9260553,178.3,178.26,21.22339305]
[1748361070365,3.9260553,178.3,178.29,26.0]
[1748361071198,3.92530701,178.33,178.29,47.22339305]
[1748361071492,3.92530701,178.33,178.31,21.22339305]
[1748361072370,3.92530701,178.33,178.32,26.0]
[1748361072882,3.92530701,178.33,178.32,47.22339305]
[1748361073595,3.92464677,178.36,178.32,26.0]
[1748361073786,25.14803982,178.36,178.32,26.0]
[1748361073976,21.22339305,178.35,178.32,26.0]
[1748361074379,25.14803982,178.36,178.32,26.0]
[1748361074680,3.92464677,178.36,178.32,21.22339305]
[1748361076068,2.80331912,178.36,178.32,21.22339305]
[1748361076494,2.80331912,178.36,178.35,26.0]
[1748361076804,1.12126478,178.37,178.35,47.22339305]
[1748361078101,1.12120192,178.38,178.37,26.0]
[1748361080193,2.80296075,178.39,178.37,26.0]
[1748361082779,3.92409982,178.39,178.37,26.0]
[1748361083388,3.92409982,178.39,178.38,26.0]
[1748361083800,1.12113907,178.39,178.38,26.0]
[1748361084701,3.92342076,178.42,178.38,26.0]
[1748361084898,21.22339305,178.39,178.33,116.27829305]
[1748361085099,21.22339305,178.36,178.33,88.8]
[1748361085301,21.22339305,178.36,178.35,26.0]
[1748361085482,21.22339305,178.36,178.33,88.8]
[1748361085983,21.22339305,178.36,178.35,26.0]
[1748361086177,21.22339305,178.36,178.31,119.22339305]
[1748361086383,21.22339305,178.35,178.31,9.2]
[1748361086675,18.64964886,178.41,178.31,9.2]
[1748361086676,21.22339305,178.36,178.32,26.0]
[1748361087077,21.22339305,178.37,178.32,47.22339305]
[1748361087278,9.52914797,178.4,178.33,21.22339305]
[1748361087479,3.92376681,178.4,178.36,21.22339305]
[1748361087780,21.22339305,178.39,178.35,26.0]
[1748361088297,3.92376681,178.4,178.35,47.22339305]
[1748361088607,3.92376681,178.4,178.36,21.22339305]
[1748361089191,21.22339305,178.39,178.35,26.0]
[1748361089393,3.92376681,178.4,178.31,30.42339305]
[1748361089394,21.22339305,178.37,178.31,30.42339305]
[1748361089594,21.22339305,178.36,178.31,30.42339305]
[1748361089815,21.22339305,178.36,178.32,26.0]
[1748361090114,21.22339305,178.35,178.32,26.0]
[1748361090420,21.22339305,178.35,178.31,9.2]
[1748361090803,21.22339305,178.35,178.31,35.2]
[1748361091011,1.1214534,178.34,178.31,35.2]
[1748361091815,1.1214534,178.34,178.31,26.0]
[1748361092902,3.92501428,178.35,178.31,26.0]
[1748361093587,3.92501428,178.35,178.32,21.22339305]
[1748361093782,3.92501428,178.35,178.33,21.22339305]
[1748361094213,3.92501428,178.35,178.32,21.22339305]
[1748361094787,3.92501428,178.35,178.33,21.22339305]
[1748361095016,2.80362376,178.35,178.33,21.22339305]
[1748361095519,2.80362376,178.35,178.32,21.22339305]
[1748361098823,1.12132765,178.36,178.34,26.0]
[1748361099005,3.92413189,178.39,178.34,47.22339305]
[1748361099317,3.92413189,178.39,178.35,21.22339305]
[1748361099618,25.14752494,178.39,178.34,47.22339305]
[1748361099912,25.14752494,178.39,178.32,123.62]
[1748361099913,21.22339305,178.38,178.36,26.0]
[1748361101091,3.92442674,178.37,178.34,26.0]
[1748361103114,1.12139052,178.35,178.33,88.8]
[1748361103713,1.12139052,178.35,178.32,47.22339305]
[1748361103948,1.12139052,178.35,178.32,26.0]
[1748361105020,3.92464677,178.36,178.32,26.0]
[1748361105400,25.14803982,178.36,178.32,26.0]
[1748361106649,21.22339305,178.35,178.32,26.0]
[1748361106895,21.22339305,178.33,178.32,26.0]
[1748361107106,1.12151629,178.33,178.32,26.0]
[1748361108209,1.12151629,178.33,178.32,47.22339305]
[1748361108511,1.12139052,178.35,178.32,47.22339305]
[1748361108919,1.12139052,178.35,178.34,47.22339305]
[1748361109097,2.80331912,178.36,178.34,47.22339305]
[1748361109903,1.12120192,178.38,178.34,47.22339305]
[1748361110135,1.12120192,178.38,178.36,21.22339305]
[1748361110309,1.12120192,178.38,178.37,21.22339305]
[1748361110628,1.12120192,178.38,178.36,21.22339305]
[1748361111200,3.92420674,178.38,178.35,21.22339305]
[1748361111433,24.02639787,178.38,178.34,26.0]
[1748361111647,24.02639787,178.38,178.33,21.22339305]
[1748361111923,24.02639787,178.38,178.33,26.0]
[1748361112236,21.22339305,178.37,178.33,26.0]
[1748361113113,24.02639787,178.38,178.33,47.22339305]
[1748361113318,25.14759979,178.38,178.33,47.22339305]
[1748361113509,3.92420674,178.38,178.34,21.22339305]
[1748361113710,3.92420674,178.38,178.34,47.22339305]
[1748361114429,25.14759979,178.38,178.34,26.0]
[1748361114728,3.92420674,178.38,178.34,26.0]
[1748361114950,3.92420674,178.38,178.33,21.22339305]
[1748361116734,21.22339305,178.37,178.32,21.22339305]
[1748361116911,21.22339305,178.36,178.3,97.98]
[1748361117110,21.22339305,178.35,178.3,30.40339305]
[1748361117615,3.9250869,178.34,178.3,30.40339305]
[1748361117818,21.22339305,178.33,178.3,9.18]
[1748361118228,3.9250869,178.34,178.3,30.40339305]
[1748361119036,3.9250869,178.34,178.3,9.18]
[1748361120560,25.14847995,178.34,178.3,9.18]
[1748361120761,25.14847995,178.34,178.28,21.22339305]
[1748361120939,25.14847995,178.34,178.29,21.22339305]
[1748361121425,21.22339305,178.33,178.28,21.22339305]
[1748361122423,3.92552713,178.32,178.28,21.22339305]
[1748361123547,3.92552713,178.32,178.29,21.22339305]
[1748361124254,3.92552713,178.32,178.28,21.22339305]
[1748361125340,3.92552713,178.32,178.27,6.2334]
[1748361125541,3.92552713,178.32,178.28,21.22339305]
[1748361125739,3.92552713,178.32,178.27,6.2334]
[1748361125740,3.92552713,178.32,178.27,27.45679305]
[1748361126757,3.92552713,178.32,178.28,21.22339305]
[1748361128022,3.92552713,178.32,178.27,27.45679305]
[1748361128259,25.14892018,178.32,178.27,27.45679305]
[1748361128636,25.14892018,178.32,178.27,21.22339305]
[1748361129451,21.22339305,178.3,178.26,26.0]
[1748361129662,21.22339305,178.3,178.25,119.20339305]
[1748361129663,21.22339305,178.29,178.25,9.18]
[1748361129840,9.53342304,178.32,178.25,30.40339305]
[1748361130163,21.22339305,178.31,178.25,30.40339305]
[1748361130928,3.92596746,178.3,178.25,30.40339305]
[1748361133132,3.92596746,178.3,178.25,9.18]
[1748361133342,3.92596746,178.3,178.25,30.40339305]
[1748361133745,3.92596746,178.3,178.26,21.22339305]
[1748361133934,3.92596746,178.3,178.25,9.18]
[1748361134135,3.92596746,178.3,178.26,21.22339305]
[1748361134460,21.22339305,178.28,178.25,9.18]
[1748361134636,21.22339305,178.28,178.23,26.0]
[1748361134637,21.22339305,178.27,178.22,21.22339305]
[1748361134842,9.53449241,178.3,178.2,9.18]
[1748361134843,21.22339305,178.26,178.2,145.20339305]
[1748361135234,3.92706871,178.25,178.2,145.20339305]
[1748361135435,3.92706871,178.25,178.2,119.20339305]
[1748361135640,3.92706871,178.25,178.21,21.22339305]
[1748361136847,3.92706871,178.25,178.2,123.98]
[1748361137040,3.92706871,178.25,178.21,21.22339305]
[1748361137239,2.80504908,178.25,178.21,21.22339305]
[1748361138571,2.80504908,178.25,178.22,21.22339305]
[1748361138736,2.80504908,178.25,178.23,21.22339305]
[1748361139766,2.80504908,178.25,178.2,123.98]
[1748361139767,2.80504908,178.25,178.22,21.22339305]
[1748361141542,1.12189375,178.27,178.24,21.22339305]
[1748361141742,1.12189375,178.27,178.26,21.22339305]
[1748361143162,1.12170499,178.3,178.27,26.0]
[1748361143342,1.12170499,178.3,178.27,21.22339305]
[1748361144059,3.92596746,178.3,178.26,47.22339305]
[1748361145065,21.22339305,178.31,178.26,47.22339305]
[1748361146758,21.22339305,178.31,178.26,26.0]
[1748361147066,3.92596746,178.3,178.26,47.22339305]
[1748361148763,2.80426247,178.3,178.27,21.22339305]
[1748361149780,2.80426247,178.3,178.26,26.0]
[1748361149935,2.80426247,178.3,178.26,47.22339305]
[1748361150836,25.14936051,178.3,178.26,26.0]
[1748361152538,25.14936051,178.3,178.25,21.22339305]
[1748361152539,21.22339305,178.29,178.24,26.0]
[1748361153271,21.22339305,178.29,178.24,47.22339305]
[1748361153582,30.75788546,178.3,178.24,47.22339305]
[1748361154581,9.53449241,178.3,178.25,21.22339305]
[1748361154745,3.92596746,178.3,178.26,21.22339305]
[1748361154946,3.92596746,178.3,178.29,21.22339305]
[1748361156770,3.92530701,178.33,178.29,21.22339305]
[1748361156971,3.92530701,178.33,178.31,21.22339305]
[1748361158783,3.92464677,178.36,178.31,21.22339305]
[1748361160180,2.80331912,178.36,178.33,21.22339305]
[1748361160362,2.80331912,178.36,178.35,21.22339305]
[1748361160880,2.80331912,178.36,178.34,21.22339305]
[1748361161259,2.80331912,178.36,178.35,21.22339305]
[1748361162294,5.60517715,178.41,178.35,21.22339305]
[1748361162295,26.8285702,178.41,178.35,21.22339305]
[1748361162774,21.22339305,178.4,178.35,21.22339305]
[1748361163791,21.22339305,178.39,178.34,21.22339305]
[1748361164302,3.92420674,178.38,178.34,21.22339305]
[1748361165975,3.92420674,178.38,178.35,21.22339305]
[1748361166185,2.80300482,178.38,178.35,21.22339305]
[1748361166892,2.80300482,178.38,178.34,21.22339305]
[1748361167485,2.80300482,178.38,178.35,21.22339305]
[1748361168870,21.22339305,178.4,178.35,21.22339305]
[1748361169286,21.22339305,178.39,178.31,151.1406]
[1748361169505,21.22339305,178.37,178.31,116.3606]
[1748361169680,21.22339305,178.36,178.27,88.8]
[1748361169872,21.22339305,178.36,178.31,21.22339305]
[1748361170073,21.22339305,178.35,178.3,47.22339305]
[1748361170685,21.22339305,178.36,178.3,47.22339305]
[1748361170892,3.92486683,178.35,178.3,47.22339305]
[1748361171369,3.92486683,178.35,178.31,21.22339305]
[1748361171574,3.92486683,178.35,178.32,21.22339305]
[1748361172579,3.92486683,178.35,178.3,26.0]
[1748361172782,3.92486683,178.35,178.31,21.22339305]
[1748361173167,2.80347631,178.35,178.31,21.22339305]
[1748361173622,2.80347631,178.35,178.34,21.22339305]
[1748361175284,3.92398676,178.39,178.34,21.22339305]
[1748361175485,3.92398676,178.39,178.35,21.22339305]
[1748361177713,5.60517715,178.41,178.35,21.22339305]
[1748361178001,21.22339305,178.4,178.35,21.22339305]
[1748361178983,5.60517715,178.41,178.36,21.22339305]
[1748361179190,5.60517715,178.41,178.37,21.22339305]
[1748361179713,9.52872403,178.41,178.37,21.22339305]
[1748361179883,9.52872403,178.41,178.36,21.22339305]
[1748361180389,30.75211708,178.41,178.36,21.22339305]
[1748361182892,9.52872403,178.41,178.36,21.22339305]
[1748361183594,30.75211708,178.41,178.36,21.22339305]
[1748361185180,9.52872403,178.41,178.37,21.22339305]
[1748361185810,9.52872403,178.41,178.38,21.22339305]
[1748361186301,8.40771064,178.41,178.37,21.22339305]
[1748361187604,8.40771064,178.41,178.33,114.8]
[1748361187605,9.52872403,178.41,178.33,114.8]
[1748361187783,21.22339305,178.4,178.33,114.8]
[1748361187980,21.22339305,178.4,178.35,21.22339305]
[1748361189522,3.92398676,178.39,178.35,21.22339305]
[1748361190593,3.92398676,178.39,178.36,21.22339305]
[1748361191614,2.80284769,178.39,178.33,114.8]
[1748361191906,2.80284769,178.39,178.35,21.22339305]
[1748361192211,2.80284769,178.39,178.38,21.22339305]
[1748361192596,1.12107623,178.4,178.39,26.0]
[1748361192793,1.12107623,178.4,178.39,47.22339305]
[1748361194092,3.92222782,178.47,178.39,136.02339305]
[1748361194395,3.92222782,178.47,178.43,21.22339305]
[1748361195889,2.8015913,178.47,178.43,21.22339305]
[1748361196089,2.8015913,178.47,178.39,114.8]
[1748361196307,24.02498435,178.47,178.39,114.8]
[1748361196496,24.02498435,178.47,178.42,21.22339305]
[1748361197388,2.8015913,178.47,178.43,21.22339305]
[1748361197587,2.8015913,178.47,178.45,21.22339305]
[1748361200213,2.8015913,178.47,178.44,21.22339305]
[1748361203398,2.8015913,178.47,178.45,21.22339305]
[1748361204121,2.8015913,178.47,178.44,21.22339305]
[1748361204816,2.8015913,178.47,178.45,21.22339305]
[1748361205605,2.8015913,178.47,178.46,21.22339305]
[1748361207718,5.60271729,178.49,178.46,21.22339305]
[1748361208930,5.60271729,178.49,178.47,21.22339305]
[1748361209920,5.60271729,178.49,178.42,123.54]
[1748361210130,5.60271729,178.49,178.47,21.22339305]
[1748361211946,9.52220915,178.53,178.48,21.22339305]
[1748361212098,9.52220915,178.53,178.51,21.22339305]
[1748361213303,8.40194925,178.53,178.51,21.22339305]
[1748361213723,2.80064975,178.53,178.52,21.22339305]
[1748361215940,5.60058822,178.56,178.52,21.22339305]
[1748361216639,5.60058822,178.56,178.53,21.22339305]
[1748361217215,5.60058822,178.56,178.52,21.22339305]
[1748361217422,5.60058822,178.56,178.5,26.0]
[1748361217717,5.60058822,178.56,178.52,21.22339305]
[1748361218438,5.60058822,178.56,178.47,144.74339305]
[1748361218439,21.22339305,178.55,178.49,21.22339305]
[1748361218614,21.22339305,178.52,178.47,110.02339305]
[1748361218816,21.22339305,178.52,178.47,21.22339305]
[1748361219823,21.22339305,178.54,178.48,21.22339305]
[1748361220021,9.52083911,178.56,178.49,21.22339305]
[1748361220222,9.52083911,178.56,178.52,21.22339305]
[1748361220639,9.52083911,178.56,178.51,21.22339305]
[1748361221349,9.52083911,178.56,178.52,21.22339305]
[1748361222221,15.12142733,178.56,178.53,21.22339305]
[1748361222843,15.12142733,178.56,178.48,34.72]
[1748361222844,14.00135565,178.56,178.51,21.22339305]
[1748361224718,15.12142733,178.56,178.51,21.22339305]
[1748361225345,36.34482038,178.56,178.48,34.72]
[1748361225553,21.22339305,178.55,178.5,21.22339305]
[1748361225950,36.34482038,178.56,178.51,21.22339305]
[1748361227744,15.12142733,178.56,178.52,21.22339305]
[1748361228843,36.34482038,178.56,178.51,21.22339305]
[1748361232224,36.34482038,178.56,178.47,149.5]
[1748361232426,21.22339305,178.55,178.5,21.22339305]
[1748361233342,21.22339305,178.54,178.47,114.8]
[1748361233539,21.22339305,178.54,178.49,21.22339305]
[1748361234047,2.80064975,178.53,178.5,21.22339305]
[1748361234625,2.80064975,178.53,178.51,21.22339305]
[1748361234827,21.22339305,178.52,178.47,88.8]
[1748361235054,21.22339305,178.51,178.44,106.1328]
[1748361235275,21.22339305,178.52,178.47,21.22339305]